fUSD/lending_fUSD_20250617
["ID","MTS","AMOUNT","RATE_DAILY","PERIOD"]
[366205888,1750119047616,-150.0,0.00016427,2]
[366205889,1750119047625,-3639.89665152,0.00016431,2]
[366205890,1750119047937,-135.6954425,0.00016431,2]
[366205891,1750119047950,-150.0,0.00016434,2]
[366205892,1750119047959,-500.0,0.00016436,2]
[366205893,1750119047968,-207.9,0.00016438,2]
[366205894,1750119047979,-150.0,0.00016438,2]
[366205895,1750119047988,-294.32587005,0.00016438,2]
[366205896,1750119048458,-352.308,0.00016274,2]
[366205897,1750119050223,-137.692,0.00016274,2]
[366205898,1750119050233,-490.0,0.00016274,2]
[366205899,1750119050243,-490.0,0.00016297,2]
[366205900,1750119050252,-151.0,0.00016299,2]
[366205901,1750119050262,-300.854048,0.00016299,2]
[366205902,1750119050272,-884.0,0.00016381,2]
[366205903,1750119050282,-2964.15412995,0.00016438,2]
[366205904,1750119050293,-150.0,0.00016439,2]
[366205905,1750119050302,-574.44,0.00016439,2]
[366205906,1750119050312,-490.0,0.00016439,2]
[366205907,1750119050321,-490.0,0.00016439,2]
[366205908,1750119050331,-490.0,0.00016439,2]
[366205909,1750119050342,-490.0,0.00016439,2]
[366205910,1750119050362,-490.0,0.00016439,2]
[366205911,1750119050372,-490.0,0.00016439,2]
[366205912,1750119050383,-490.0,0.00016439,2]
[366205913,1750119050393,-490.0,0.00016439,2]
[366205914,1750119050402,-490.0,0.00016439,2]
[366205915,1750119050411,-490.0,0.00016439,2]
[366205916,1750119050421,-490.0,0.00016439,2]
[366205917,1750119050431,-1250.05,0.00016439,2]
[366205918,1750119050441,-490.0,0.00016439,2]
[366205919,1750119050451,-490.0,0.00016439,2]
[366205920,1750119050460,-490.0,0.00016439,2]
[366205921,1750119050469,-799.79,0.00016439,2]
[366205922,1750119050479,-1002.3,0.00016439,2]
[366205923,1750119050488,-490.0,0.00016439,2]
[366205924,1750119050497,-490.0,0.00016439,2]
[366205925,1750119050511,-490.0,0.00016439,2]
[366205926,1750119050521,-490.0,0.00016439,2]
[366205927,1750119050530,-490.0,0.00016439,2]
[366205928,1750119050539,-490.0,0.00016439,2]
[366205929,1750119050549,-490.0,0.00016439,2]
[366205930,1750119050558,-1921.25,0.00016439,2]
[366205931,1750119050568,-490.0,0.00016439,2]
[366205932,1750119050577,-490.0,0.00016439,2]
[366205933,1750119050586,-490.0,0.00016439,2]
[366205934,1750119050599,-490.0,0.00016439,2]
[366205935,1750119050608,-344.530877,0.00016439,2]
[366205936,1750119050618,-490.0,0.00016439,2]
[366205937,1750119050627,-490.0,0.00016439,2]
[366205938,1750119050639,-490.0,0.00016439,2]
[366205939,1750119050649,-490.0,0.00016439,2]
[366205940,1750119050658,-490.0,0.00016439,2]
[366205941,1750119050667,-490.0,0.00016439,2]
[366205942,1750119050677,-506.47,0.00016439,2]
[366205943,1750119050686,-500.0,0.0001644,2]
[366205944,1750119050696,-151.0,0.00016441,2]
[366205945,1750119050705,-151.0,0.00016441,2]
[366205946,1750119050715,-151.0,0.00016441,2]
[366205947,1750119050724,-151.0,0.00016441,2]
[366205948,1750119050734,-151.0,0.00016441,2]
[366205949,1750119050743,-151.0,0.00016441,2]
[366205950,1750119050751,-151.0,0.00016441,2]
[366205951,1750119050761,-151.0,0.00016441,2]
[366205952,1750119050771,-151.0,0.00016441,2]
[366205953,1750119050780,-151.0,0.00016441,2]
[366205954,1750119050789,-175.451785,0.00016441,2]
[366205955,1750119050799,-151.0,0.00016441,2]
[366205956,1750119050808,-151.0,0.00016441,2]
[366205957,1750119050817,-175.451785,0.00016441,2]
[366205958,1750119050827,-172.505861,0.00016441,2]
[366205959,1750119050836,-151.0,0.00016441,2]
[366205960,1750119050846,-161.063379,0.00016441,2]
[366205961,1750119050855,-161.063379,0.00016441,2]
[366205962,1750119050995,-151.0,0.00016441,2]
[366205963,1750119051006,-151.0,0.00016441,2]
[366205964,1750119051017,-78660.708447,0.00016441,2]
[366205965,1750119051027,-259.112738,0.00016441,2]
[366205966,1750119051038,-259.112738,0.00016441,2]
[366205967,1750119051048,-151.0,0.00016441,2]
[366205968,1750119051057,-151.0,0.00016441,2]
[366205969,1750119051067,-102.15428831,0.00016441,2]
[366205970,1750119051089,-1050.0,0.00016441,2]
[366205971,1750119051100,-1507.64704769,0.00016441,2]
[366205972,1750119051111,-2659.801336,0.00016441,2]
[366205973,1750119051120,-225.572988,0.00016441,2]
[366205974,1750119051130,-225.572988,0.00016441,2]
[366205975,1750119051147,-151.0,0.00016441,2]
[366205976,1750119051156,-151.0,0.00016441,2]
[366205977,1750119051166,-151.0,0.00016441,2]
[366205978,1750119051176,-151.0,0.00016441,2]
[366205979,1750119051185,-151.0,0.00016441,2]
[366205980,1750119051195,-151.0,0.00016441,2]
[366205981,1750119051204,-5114.40564031,0.00016441,2]
[366205982,1750119051216,-3437.69914159,0.00016441,2]
[366205983,1750119051226,-151.0,0.00016441,2]
[366205984,1750119051235,-157.529937,0.00016441,2]
[366205985,1750119051246,-151.0,0.00016441,2]
[366205986,1750119051256,-151.0,0.00016441,2]
[366205987,1750119051266,-157.529937,0.00016441,2]
[366205988,1750119051276,-300.854048,0.00016441,2]
[366205989,1750119051286,-151.0,0.00016441,2]
[366205990,1750119051296,-300.854048,0.00016441,2]
[366205991,1750119051306,-150.0,0.00016443,2]
[366205992,1750119051317,-15605.19235205,0.00016443,2]
[366205993,1750119051330,-256.504248,0.00016443,2]
[366205994,1750119051360,-490.0,0.00016274,2]
[366205995,1750119051371,-45.76078295,0.00016443,2]
[366205996,1750119051432,200.0,0.00014725,2]
[366205997,1750119051729,-490.0,0.00016297,2]
[366205998,1750119051739,-490.0,0.00016297,2]
[366205999,1750119051750,-8166.30883,0.00016443,2]
[366206000,1750119051762,-12959.1014342,0.00016443,2]
[366206001,1750119051771,-150.0,0.0001645,2]
[366206002,1750119051781,-191.75,0.0001645,2]
[366206003,1750119051790,-150.163,0.0001645,2]
[366206004,1750119051800,-150.0,0.0001645,2]
[366206005,1750119051811,-200.0,0.0001645,2]
[366206006,1750119051821,-200.0,0.0001645,2]
[366206007,1750119051830,-679.74240383,0.00016452,2]
[366206008,1750119051840,-192.97,0.00016454,2]
[366206009,1750119051849,-240.448,0.00016454,2]
[366206010,1750119051859,-250.0,0.00016454,2]
[366206011,1750119051868,-218.873,0.00016454,2]
[366206012,1750119051878,-291.061,0.00016454,2]
[366206013,1750119051891,-250.0,0.00016454,2]
[366206014,1750119051900,-253.434,0.00016454,2]
[366206015,1750119051910,-184.061,0.00016454,2]
[366206016,1750119051920,-204.502,0.00016454,2]
[366206017,1750119051930,-200.837,0.00016454,2]
[366206018,1750119051941,-243.997,0.00016454,2]
[366206019,1750119051951,-158.146,0.00016454,2]
[366206020,1750119051961,-237.492836,0.00016461,2]
[366206021,1750119051971,-490.0,0.00016461,2]
[366206022,1750119051982,-500.0,0.00016461,2]
[366206023,1750119051992,-490.0,0.00016461,2]
[366206024,1750119052002,-490.0,0.00016461,2]
[366206025,1750119052012,-1599.97,0.00016461,2]
[366206026,1750119052026,-490.0,0.00016461,2]
[366206027,1750119052036,-490.0,0.00016461,2]
[366206028,1750119052046,-490.0,0.00016461,2]
[366206029,1750119052055,-591.87,0.00016461,2]
[366206030,1750119052064,-230.0398429,0.00016461,2]
[366206031,1750119052077,-259.9601571,0.00016461,2]
[366206032,1750119052086,-733.34,0.00016461,2]
[366206033,1750119052096,-809.66,0.00016461,2]
[366206034,1750119052105,-241.31,0.00016461,2]
[366206035,1750119052115,-642.63,0.00016461,2]
[366206036,1750119052126,-490.0,0.00016461,2]
[366206037,1750119052138,-490.0,0.00016461,2]
[366206038,1750119052148,-500.0,0.00016461,2]
[366206039,1750119052158,-1578.76,0.00016461,2]
[366206040,1750119052168,-493.93,0.00016461,2]
[366206041,1750119052178,-702.85,0.00016461,2]
[366206042,1750119052188,-490.0,0.00016461,2]
[366206043,1750119052199,-704.15,0.00016461,2]
[366206044,1750119052211,-490.0,0.00016461,2]
[366206045,1750119052220,-381.88,0.00016461,2]
[366206046,1750119052230,-490.0,0.00016461,2]
[366206047,1750119052241,-978.47,0.00016461,2]
[366206048,1750119052251,-698.17,0.00016461,2]
[366206049,1750119052262,-708.94,0.00016461,2]
[366206050,1750119052272,-523.3,0.00016461,2]
[366206051,1750119052282,-192.14,0.00016461,2]
[366206052,1750119052292,-562.27,0.00016461,2]
[366206053,1750119052303,-913.98,0.00016461,2]
[366206054,1750119052313,-490.0,0.00016461,2]
[366206055,1750119052323,-490.0,0.00016461,2]
[366206056,1750119052339,-528.01,0.00016461,2]
[366206057,1750119052349,-490.0,0.00016461,2]
[366206058,1750119052359,-3258.48,0.00016461,2]
[366206059,1750119052370,-490.0,0.00016462,2]
[366206060,1750119052380,-490.0,0.00016462,2]
[366206061,1750119052392,-151.0,0.00016462,2]
[366206062,1750119052402,-151.0,0.00016462,2]
[366206063,1750119052412,-151.0,0.00016462,2]
[366206064,1750119052422,-151.0,0.00016462,2]
[366206065,1750119052433,-151.0,0.00016462,2]
[366206066,1750119052443,-490.0,0.00016462,2]
[366206067,1750119052454,-151.0,0.00016462,2]
[366206068,1750119052465,-151.0,0.00016462,2]
[366206069,1750119052475,-151.0,0.00016462,2]
[366206070,1750119052485,-151.0,0.00016462,2]
[366206071,1750119052496,-151.0,0.00016462,2]
[366206072,1750119052506,-151.0,0.00016462,2]
[366206073,1750119052516,-151.0,0.00016462,2]
[366206074,1750119052526,-151.0,0.00016462,2]
[366206075,1750119052537,-490.0,0.00016462,2]
[366206076,1750119052547,-490.0,0.00016462,2]
[366206077,1750119052558,-490.0,0.00016462,2]
[366206078,1750119052569,-559.14,0.00016462,2]
[366206079,1750119052578,-512.44,0.00016462,2]
[366206080,1750119052588,-151.0,0.00016462,2]
[366206081,1750119052597,-490.0,0.00016462,2]
[366206082,1750119052608,-503.2,0.00016462,2]
[366206083,1750119052618,-189.3,0.00016462,2]
[366206084,1750119052628,-563.94,0.00016462,2]
[366206085,1750119052640,-490.0,0.00016462,2]
[366206086,1750119052652,-337.89957324,0.00016462,2]
[366206087,1750119052663,-490.0,0.00016462,2]
[366206088,1750119052673,-151.0,0.00016462,2]
[366206089,1750119052683,-322.3516,0.00016462,2]
[366206090,1750119052694,-490.0,0.00016462,2]
[366206091,1750119052704,-322.3516,0.00016462,2]
[366206092,1750119052714,-613.24,0.00016462,2]
[366206093,1750119052724,-490.0,0.00016462,2]
[366206094,1750119052734,-490.0,0.00016462,2]
[366206095,1750119052744,-561.31,0.00016462,2]
[366206096,1750119052754,-490.0,0.00016462,2]
[366206097,1750119052764,-490.0,0.00016462,2]
[366206098,1750119052774,-500.98,0.00016462,2]
[366206099,1750119052796,-529.03,0.00016462,2]
[366206100,1750119052808,-490.0,0.00016462,2]
[366206101,1750119052819,-490.0,0.00016462,2]
[366206102,1750119052830,-490.0,0.00016462,2]
[366206103,1750119052840,-417.96687889,0.00016462,2]
[366206104,1750119052852,-490.0,0.00016462,2]
[366206105,1750119052862,-490.0,0.00016462,2]
[366206106,1750119052873,-401.74642637,0.00016462,2]
[366206107,1750119052886,-151.0,0.00016462,2]
[366206108,1750119052897,-490.0,0.00016462,2]
[366206109,1750119052907,-633.92,0.00016462,2]
[366206110,1750119052919,-490.0,0.00016462,2]
[366206111,1750119052929,-490.0,0.00016462,2]
[366206112,1750119052942,-490.0,0.00016462,2]
[366206113,1750119052953,-490.0,0.00016462,2]
[366206114,1750119052965,-490.0,0.00016462,2]
[366206115,1750119052975,-490.0,0.00016462,2]
[366206116,1750119052987,-151.0,0.00016462,2]
[366206117,1750119052998,-490.0,0.00016462,2]
[366206118,1750119053009,-490.0,0.00016462,2]
[366206119,1750119053019,-490.0,0.00016462,2]
[366206120,1750119053030,-151.0,0.00016462,2]
[366206121,1750119053041,-490.0,0.00016462,2]
[366206122,1750119053051,-505.37,0.00016462,2]
[366206123,1750119053062,-543.78256693,0.00016462,2]
[366206124,1750119053072,-243.45,0.00016462,2]
[366206125,1750119053082,-490.0,0.00016462,2]
[366206126,1750119053093,-574.51914278,0.00016462,2]
[366206127,1750119053103,-560.28,0.00016462,2]
[366206128,1750119053115,-536.3,0.00016462,2]
[366206129,1750119053126,-490.0,0.00016462,2]
[366206130,1750119053140,-522.51787088,0.00016462,2]
[366206131,1750119053150,-151.0,0.00016462,2]
[366206132,1750119053161,-498.43,0.00016462,2]
[366206133,1750119053171,-490.0,0.00016462,2]
[366206134,1750119053182,-490.0,0.00016462,2]
[366206135,1750119053193,-490.0,0.00016462,2]
[366206136,1750119053203,-490.0,0.00016462,2]
[366206137,1750119053214,-490.0,0.00016462,2]
[366206138,1750119053224,-898.27,0.00016462,2]
[366206139,1750119053234,-490.0,0.00016462,2]
[366206140,1750119053244,-151.0,0.00016462,2]
[366206141,1750119053255,-151.0,0.00016462,2]
[366206142,1750119053265,-151.0,0.00016462,2]
[366206143,1750119053276,-599.74,0.00016462,2]
[366206144,1750119053286,-485.27025297,0.00016462,2]
[366206145,1750119053297,-490.0,0.00016462,2]
[366206146,1750119053307,-490.0,0.00016462,2]
[366206147,1750119053317,-151.0,0.00016462,2]
[366206148,1750119053327,-151.0,0.00016462,2]
[366206149,1750119053337,-490.0,0.00016462,2]
[366206150,1750119053348,-151.0,0.00016462,2]
[366206151,1750119053358,-264.882568,0.00016462,2]
[366206152,1750119053368,-490.0,0.00016462,2]
[366206153,1750119053378,-490.0,0.00016462,2]
[366206154,1750119053745,-490.0,0.00016462,2]
[366206155,1750119053756,-151.0,0.00016462,2]
[366206156,1750119053767,-490.0,0.00016462,2]
[366206157,1750119053777,-490.0,0.00016462,2]
[366206158,1750119053788,-151.0,0.00016462,2]
[366206159,1750119053798,-613.18,0.00016462,2]
[366206160,1750119053808,-490.0,0.00016462,2]
[366206161,1750119053818,-290.68,0.00016462,2]
[366206162,1750119053828,-490.0,0.00016462,2]
[366206163,1750119053838,-490.0,0.00016462,2]
[366206164,1750119053848,-151.0,0.00016462,2]
[366206165,1750119053858,-175.451785,0.00016462,2]
[366206166,1750119053868,-204.20422,0.00016462,2]
[366206167,1750119053878,-175.451785,0.00016462,2]
[366206168,1750119053891,-490.0,0.00016462,2]
[366206169,1750119053902,-151.0,0.00016462,2]
[366206170,1750119053912,-587.05,0.00016462,2]
[366206171,1750119053922,-151.0,0.00016462,2]
[366206172,1750119053933,-490.0,0.00016462,2]
[366206173,1750119053945,-377.18,0.00016462,2]
[366206174,1750119053956,-239.56,0.00016462,2]
[366206175,1750119053967,-151.0,0.00016462,2]
[366206176,1750119053979,-490.0,0.00016462,2]
[366206177,1750119053989,-151.0,0.00016462,2]
[366206178,1750119053999,-151.0,0.00016462,2]
[366206179,1750119054010,-490.0,0.00016462,2]
[366206180,1750119054021,-490.0,0.00016462,2]
[366206181,1750119054031,-151.0,0.00016462,2]
[366206182,1750119054040,-490.0,0.00016462,2]
[366206183,1750119054050,-606.44,0.00016462,2]
[366206184,1750119054060,-151.0,0.00016462,2]
[366206185,1750119054070,-158.46644,0.00016462,2]
[366206186,1750119054079,-490.0,0.00016462,2]
[366206187,1750119054089,-158.46644,0.00016462,2]
[366206188,1750119054099,-490.0,0.00016462,2]
[366206189,1750119054109,-490.0,0.00016462,2]
[366206190,1750119054120,-490.0,0.00016462,2]
[366206191,1750119054131,-569.06,0.00016462,2]
[366206192,1750119054146,-161.063379,0.00016462,2]
[366206193,1750119054157,-161.063379,0.00016462,2]
[366206194,1750119054167,-490.0,0.00016462,2]
[366206195,1750119054178,-490.0,0.00016462,2]
[366206196,1750119054188,-151.937604,0.00016462,2]
[366206197,1750119054199,-672.82,0.00016462,2]
[366206198,1750119054210,-490.0,0.00016462,2]
[366206199,1750119054221,-490.0,0.00016462,2]
[366206200,1750119054231,-151.0,0.00016462,2]
[366206201,1750119054242,-160.582067,0.00016462,2]
[366206202,1750119054253,-490.0,0.00016462,2]
[366206203,1750119054264,-500.57,0.00016462,2]
[366206204,1750119054275,-490.0,0.00016462,2]
[366206205,1750119054286,-490.0,0.00016462,2]
[366206206,1750119054298,-490.0,0.00016462,2]
[366206207,1750119054309,-490.0,0.00016462,2]
[366206208,1750119054319,-490.0,0.00016462,2]
[366206209,1750119054330,-522.93,0.00016462,2]
[366206210,1750119054341,-490.0,0.00016462,2]
[366206211,1750119054350,-259.112738,0.00016462,2]
[366206212,1750119054360,-490.0,0.00016462,2]
[366206213,1750119054371,-490.0,0.00016462,2]
[366206214,1750119054382,-259.112738,0.00016462,2]
[366206215,1750119054395,-592.24632887,0.00016462,2]
[366206216,1750119054411,-1473.62,0.00016462,2]
[366206217,1750119054453,-1357.76367113,0.00016462,2]
[366206218,1750119054465,-2659.801336,0.00016462,2]
[366206219,1750119054476,-490.0,0.00016462,2]
[366206220,1750119054486,-490.0,0.00016462,2]
[366206221,1750119054497,-2659.801336,0.00016462,2]
[366206222,1750119054506,-225.572988,0.00016462,2]
[366206223,1750119054516,-150.07,0.00016462,2]
[366206224,1750119054527,-490.0,0.00016462,2]
[366206225,1750119054538,-225.572988,0.00016462,2]
[366206226,1750119054549,-1266.87,0.00016462,2]
[366206227,1750119054561,-151.0,0.00016462,2]
[366206228,1750119054572,-490.0,0.00016462,2]
[366206229,1750119054584,-490.0,0.00016462,2]
[366206230,1750119054595,-490.0,0.00016462,2]
[366206231,1750119054605,-507.08,0.00016462,2]
[366206232,1750119054616,-392.83,0.00016462,2]
[366206233,1750119054627,-1194.25,0.00016462,2]
[366206234,1750119054641,-338.81,0.00016462,2]
[366206235,1750119054651,-752.69,0.00016462,2]
[366206236,1750119054662,-561.95,0.00016462,2]
[366206237,1750119054672,-490.0,0.00016462,2]
[366206238,1750119054682,-649.69,0.00016462,2]
[366206239,1750119054692,-1232.95,0.00016462,2]
[366206240,1750119054702,-490.0,0.00016462,2]
[366206241,1750119054712,-490.0,0.00016462,2]
[366206242,1750119054722,-1054.32,0.00016462,2]
[366206243,1750119054731,-224.56,0.00016462,2]
[366206244,1750119054742,-490.0,0.00016462,2]
[366206245,1750119054752,-490.0,0.00016462,2]
[366206246,1750119054762,-151.0,0.00016462,2]
[366206247,1750119054771,-151.0,0.00016462,2]
[366206248,1750119054782,-545.94,0.00016462,2]
[366206249,1750119054792,-490.0,0.00016462,2]
[366206250,1750119054803,-1668.61,0.00016462,2]
[366206251,1750119054813,-548.85,0.00016462,2]
[366206252,1750119054823,-490.0,0.00016462,2]
[366206253,1750119054833,-1248.68,0.00016462,2]
[366206254,1750119054843,-430.2158834,0.00016462,2]
[366206255,1750119054853,-490.0,0.00016462,2]
[366206256,1750119054862,-490.0,0.00016462,2]
[366206257,1750119054872,-490.0,0.00016462,2]
[366206258,1750119054883,-575.97,0.00016462,2]
[366206259,1750119054897,-490.0,0.00016462,2]
[366206260,1750119054908,-490.0,0.00016462,2]
[366206261,1750119054918,-490.0,0.00016462,2]
[366206262,1750119054928,-490.0,0.00016462,2]
[366206263,1750119054941,-3554.72,0.00016462,2]
[366206264,1750119054953,-490.0,0.00016462,2]
[366206265,1750119054964,-490.0,0.00016462,2]
[366206266,1750119054975,-490.0,0.00016462,2]
[366206267,1750119054987,-490.0,0.00016462,2]
[366206268,1750119054996,-1066.26,0.00016462,2]
[366206269,1750119055006,-490.0,0.00016462,2]
[366206270,1750119055016,-490.0,0.00016462,2]
[366206271,1750119055026,-2667.27,0.00016462,2]
[366206272,1750119055036,-266.16701606,0.00016462,2]
[366206273,1750119055046,-259.81,0.00016462,2]
[366206274,1750119055056,-1022.59,0.00016462,2]
[366206275,1750119055066,-392.11618817,0.00016462,2]
[366206276,1750119055076,-490.0,0.00016462,2]
[366206277,1750119055085,-490.0,0.00016462,2]
[366206278,1750119055096,-2479.52,0.00016462,2]
[366206279,1750119055106,-490.0,0.00016462,2]
[366206280,1750119055115,-490.0,0.00016462,2]
[366206281,1750119055125,-608.96,0.00016462,2]
[366206282,1750119055139,-490.0,0.00016462,2]
[366206283,1750119055149,-490.0,0.00016462,2]
[366206284,1750119055158,-490.0,0.00016462,2]
[366206285,1750119055168,-490.0,0.00016462,2]
[366206286,1750119055178,-490.0,0.00016462,2]
[366206287,1750119055189,-490.0,0.00016462,2]
[366206288,1750119055200,-490.0,0.00016462,2]
[366206289,1750119055210,-490.0,0.00016462,2]
[366206290,1750119055220,-490.0,0.00016462,2]
[366206291,1750119055230,-490.0,0.00016462,2]
[366206292,1750119055240,-490.0,0.00016462,2]
[366206293,1750119055249,-178.22,0.00016462,2]
[366206294,1750119055259,-490.0,0.00016462,2]
[366206295,1750119055269,-490.0,0.00016462,2]
[366206296,1750119055280,-1127.15,0.00016462,2]
[366206297,1750119055290,-151.0,0.00016462,2]
[366206298,1750119055300,-490.0,0.00016462,2]
[366206299,1750119055310,-490.0,0.00016462,2]
[366206300,1750119055320,-3628.59,0.00016462,2]
[366206301,1750119055330,-151.0,0.00016462,2]
[366206302,1750119055340,-490.0,0.00016462,2]
[366206303,1750119055350,-490.0,0.00016462,2]
[366206304,1750119055360,-150.116271,0.00016462,2]
[366206305,1750119055370,-490.0,0.00016462,2]
[366206306,1750119055380,-240.56,0.00016462,2]
[366206307,1750119055394,-490.0,0.00016462,2]
[366206308,1750119055404,-675.41,0.00016462,2]
[366206309,1750119055414,-490.0,0.00016462,2]
[366206310,1750119055424,-490.0,0.00016462,2]
[366206311,1750119055434,-151.0,0.00016462,2]
[366206312,1750119055444,-157.529937,0.00016462,2]
[366206313,1750119055454,-490.0,0.00016462,2]
[366206314,1750119055464,-490.0,0.00016462,2]
[366206315,1750119055474,-289.375558,0.00016462,2]
[366206316,1750119055484,-151.0,0.00016462,2]
[366206317,1750119055494,-157.529937,0.00016462,2]
[366206318,1750119055504,-490.0,0.00016462,2]
[366206319,1750119055514,-300.854048,0.00016462,2]
[366206320,1750119055525,-490.0,0.00016462,2]
[366206321,1750119055535,-151.0,0.00016462,2]
[366206322,1750119055545,-300.854048,0.00016462,2]
[366206323,1750119055556,-500.0,0.00016463,2]
[366206324,1750119055565,-151.0,0.00016463,2]
[366206325,1750119055575,-151.0,0.00016463,2]
[366206326,1750119055586,-151.0,0.00016463,2]
[366206327,1750119055596,-151.0,0.00016463,2]
[366206328,1750119055606,-151.0,0.00016463,2]
[366206329,1750119055616,-151.0,0.00016463,2]
[366206330,1750119055626,-151.0,0.00016463,2]
[366206331,1750119055636,-151.0,0.00016463,2]
[366206332,1750119055646,-151.0,0.00016463,2]
[366206333,1750119055656,-151.0,0.00016463,2]
[366206334,1750119055666,-151.0,0.00016463,2]
[366206335,1750119055676,-151.0,0.00016463,2]
[366206336,1750119055686,-164.436426,0.00016463,2]
[366206337,1750119055696,-151.0,0.00016463,2]
[366206338,1750119055706,-151.0,0.00016463,2]
[366206339,1750119055716,-151.0,0.00016463,2]
[366206340,1750119055726,-245.58567,0.00016463,2]
[366206341,1750119055736,-151.0,0.00016463,2]
[366206342,1750119055746,-228.3,0.00016475,2]
[366206343,1750119055756,-151.0,0.00016479,2]
[366206344,1750119055765,-151.0,0.00016479,2]
[366206345,1750119055775,-151.0,0.00016479,2]
[366206346,1750119055785,-151.0,0.00016479,2]
[366206347,1750119055795,-151.0,0.00016479,2]
[366206348,1750119055805,-679.74240383,0.00016486,2]
[366206349,1750119055816,-500.0,0.0001649,2]
[366206350,1750119055826,-151.0,0.00016493,2]
[366206351,1750119055837,-151.0,0.00016493,2]
[366206352,1750119055847,-168.0,0.00016495,2]
[366206353,1750119055857,-600.0,0.000165,6]
[366206354,1750119055867,-151.0,0.00016509,2]
[366206355,1750119055877,-151.319505,0.00016509,2]
[366206356,1750119055889,-151.0,0.00016509,2]
[366206357,1750119055899,-210.046608,0.00016509,2]
[366206358,1750119055909,-151.0,0.00016509,2]
[366206359,1750119055920,-3775.59209402,0.00016509,2]
[366206360,1750119055930,-230.0,0.00016518,2]
[366206361,1750119055943,-679.74240383,0.00016521,2]
[366206362,1750119055954,-500.0,0.00016529,2]
[366206363,1750119055964,-151.0,0.00016548,2]
[366206364,1750119055973,-151.0,0.00016548,2]
[366206365,1750119055986,-164.66262802,0.00016549,2]
[366206366,1750119055995,-163.3665757,0.00016549,2]
[366206367,1750119056005,-363.0,0.00016554,4]
[366206368,1750119056016,-534.47937427,0.00016555,2]
[366206369,1750119056041,-145.26302956,0.00016555,2]
[366206370,1750119056051,-168.0,0.00016575,2]
[366206371,1750119056060,-156.55935743,0.00016587,2]
[366206372,1750119056070,-1561.5956632,0.00016588,2]
[366206373,1750119056082,-1066.93361004,0.00016588,2]
[366206374,1750119056094,-562.39999668,0.00016588,2]
[366206375,1750119056464,-554.87359487,0.00016588,2]
[366206376,1750119057508,1000.0,0.00015113,2]
[366206377,1750119070197,500.0,0.00015068,2]
[366206378,1750119080529,1163.41,0.00015384,2]
[366206379,1750119107401,500.0,0.0001549,2]
[366206380,1750119151713,150.0,0.00020189,120]
[366206381,1750119290398,500.0,0.00015068,2]
[366206383,1750119427729,250.0,0.00015,2]
[366206384,1750119442925,204.94,0.00015242,2]
[366206386,1750119612427,346.95,0.00015189,2]
[366206388,1750119732112,347.0,0.00015011,2]
[366206389,1750119732387,347.0,0.00015466,2]
[366206390,1750119734331,253.26,0.0001549,2]